fUSD/lending_fUSD_20250530
["ID","MTS","AMOUNT","RATE_DAILY","PERIOD"]
[363159899,1748604656156,-430.15,0.00022465,2]
[363159900,1748604656165,-9469.1,0.00022465,2]
[363159901,1748604656175,-10073.27,0.00022465,2]
[363159902,1748604656185,-742.8,0.00022465,2]
[363159903,1748604656195,-420.0,0.00022465,2]
[363159904,1748604656205,-2689.83,0.00022465,2]
[363159905,1748604656214,-1981.59,0.00022465,2]
[363159906,1748604656224,-607.85,0.00022465,2]
[363159907,1748604656233,-564.47,0.00022465,2]
[363159908,1748604656242,-576.41,0.00022465,2]
[363159909,1748604656252,-1369.33,0.00022465,2]
[363159910,1748604656261,-12307.47,0.00022465,2]
[363159911,1748604656271,-1369.38,0.00022465,2]
[363159912,1748604656280,-863.99,0.00022465,2]
[363159913,1748604656289,-1245.87,0.00022465,2]
[363159914,1748604656299,-5194.13,0.00022465,2]
[363159915,1748604656308,-420.0,0.00022465,2]
[363159916,1748604656317,-880.77,0.00022465,2]
[363159917,1748604656327,-563.44,0.00022465,2]
[363159918,1748604656337,-412.99968767,0.00022465,2]
[363159919,1748604656347,-2466.96,0.00022465,2]
[363159920,1748604656356,-631.65,0.00022465,2]
[363159921,1748604656366,-420.0,0.00022465,2]
[363159922,1748604656375,-420.0,0.00022465,2]
[363159923,1748604656385,-659.94,0.00022465,2]
[363159924,1748604656395,-816.72,0.00022465,2]
[363159925,1748604656404,-420.0,0.00022465,2]
[363159926,1748604656413,-2995.72,0.00022465,2]
[363159927,1748604656422,-598.75,0.00022465,2]
[363159928,1748604656431,-2447.94,0.00022465,2]
[363159929,1748604656440,-2947.99,0.00022465,2]
[363159930,1748604656449,-420.0,0.00022465,2]
[363159931,1748604656458,-1153.83,0.00022465,2]
[363159932,1748604656468,-3076.84,0.00022465,2]
[363159933,1748604656477,-769.26,0.00022465,2]
[363159934,1748604656487,-924.16,0.00022465,2]
[363159935,1748604656496,-644.07,0.00022465,2]
[363159936,1748604656506,-420.0,0.00022465,2]
[363159937,1748604656515,-1310.77,0.00022465,2]
[363159938,1748604656524,-1040.66,0.00022465,2]
[363159939,1748604656534,-520.85,0.00022465,2]
[363159940,1748604656543,-1315.08,0.00022465,2]
[363159941,1748604656553,-420.0,0.00022465,2]
[363159942,1748604656563,-420.0,0.00022465,2]
[363159943,1748604656572,-420.0,0.00022465,2]
[363159944,1748604656582,-1506.01,0.00022465,2]
[363159945,1748604656591,-1515.01,0.00022465,2]
[363159946,1748604656600,-420.0,0.00022465,2]
[363159947,1748604656610,-1337.36,0.00022465,2]
[363159948,1748604656620,-3730.71,0.00022465,2]
[363159949,1748604656629,-425.25,0.00022465,2]
[363159950,1748604656639,-1314.08,0.00022465,2]
[363159951,1748604656649,-759.43,0.00022465,2]
[363159952,1748604656659,-909.46,0.00022465,2]
[363159953,1748604656668,-420.0,0.00022465,2]
[363159954,1748604656677,-673.25,0.00022465,2]
[363159955,1748604656687,-2157.82,0.00022465,2]
[363159956,1748604656696,-612.32,0.00022465,2]
[363159957,1748604656706,-1256.48,0.00022465,2]
[363159958,1748604656715,-1075.01,0.00022465,2]
[363159959,1748604656725,-1309.63,0.00022465,2]
[363159960,1748604656734,-1218.05,0.00022465,2]
[363159961,1748604656743,-915.55,0.00022465,2]
[363159962,1748604656753,-2231.36,0.00022465,2]
[363159963,1748604656763,-420.0,0.00022465,2]
[363159964,1748604656772,-420.0,0.00022465,2]
[363159965,1748604656782,-420.0,0.00022465,2]
[363159966,1748604656791,-2569.35,0.00022465,2]
[363159967,1748604656801,-6828.35,0.00022465,2]
[363159968,1748604656810,-1631.2,0.00022465,2]
[363159969,1748604656819,-611.68,0.00022465,2]
[363159970,1748604656828,-3976.57,0.00022465,2]
[363159971,1748604656837,-394.26,0.00022465,2]
[363159972,1748604656846,-555.53,0.00022465,2]
[363159973,1748604656855,-3327.44,0.00022465,2]
[363159974,1748604656865,-420.0,0.00022465,2]
[363159975,1748604656876,-1192.67,0.00022465,2]
[363159976,1748604656885,-828.67,0.00022465,2]
[363159977,1748604656894,-3739.43,0.00022465,2]
[363159978,1748604656904,-479.23208887,0.00022465,2]
[363159979,1748604656915,-420.0,0.00022465,2]
[363159980,1748604656925,-772.93,0.00022465,2]
[363159981,1748604656935,-2900.14,0.00022465,2]
[363159982,1748604656945,-3733.9,0.00022465,2]
[363159983,1748604656956,-1294.2,0.00022465,2]
[363159984,1748604656966,-1235.41,0.00022465,2]
[363159985,1748604656975,-5087.08,0.00022465,2]
[363159986,1748604656985,-1678.74,0.00022465,2]
[363159987,1748604656994,-582.4,0.00022465,2]
[363159988,1748604657007,-1439.67,0.00022465,2]
[363159989,1748604657020,-580.13,0.00022465,2]
[363159990,1748604657030,-6434.09,0.00022465,2]
[363159991,1748604657040,-759.66,0.00022465,2]
[363159992,1748604657050,-3623.76,0.00022465,2]
[363159993,1748604657060,-655.72,0.00022465,2]
[363159994,1748604657070,-642.76,0.00022465,2]
[363159995,1748604657080,-420.0,0.00022465,2]
[363159996,1748604657090,-481.9,0.00022465,2]
[363159997,1748604657100,-447.8,0.00022465,2]
[363159998,1748604657111,-549.6,0.00022465,2]
[363159999,1748604657121,-3772.06,0.00022465,2]
[363160000,1748604657131,-2238.52,0.00022465,2]
[363160001,1748604657141,-656.16,0.00022465,2]
[363160002,1748604657151,-2601.73,0.00022465,2]
[363160003,1748604657161,-1054.88,0.00022465,2]
[363160004,1748604657171,-568.59,0.00022465,2]
[363160005,1748604657180,-1168.1,0.00022465,2]
[363160006,1748604657190,-1669.51,0.00022465,2]
[363160007,1748604657199,-581.44,0.00022465,2]
[363160008,1748604657209,-999.1,0.00022465,2]
[363160009,1748604657219,-420.0,0.00022465,2]
[363160010,1748604657229,-3565.93,0.00022465,2]
[363160011,1748604657238,-420.0,0.00022465,2]
[363160012,1748604657247,-644.61,0.00022465,2]
[363160013,1748604657257,-1021.83,0.00022465,2]
[363160014,1748604657266,-1573.75,0.00022465,2]
[363160015,1748604657276,-420.0,0.00022465,2]
[363160016,1748604657285,-1017.27,0.00022465,2]
[363160017,1748604657295,-700.99,0.00022465,2]
[363160018,1748604657304,-2494.53,0.00022465,2]
[363160019,1748604657313,-2312.08,0.00022465,2]
[363160020,1748604657323,-680.88,0.00022465,2]
[363160021,1748604657332,-1182.54,0.00022465,2]
[363160022,1748604657341,-906.67,0.00022465,2]
[363160023,1748604657350,-2382.61,0.00022465,2]
[363160024,1748604657359,-8094.13,0.00022465,2]
[363160025,1748604657368,-420.0,0.00022465,2]
[363160026,1748604657378,-516.49,0.00022465,2]
[363160027,1748604657388,-420.0,0.00022465,2]
[363160028,1748604657397,-3383.87,0.00022465,2]
[363160029,1748604657406,-927.42,0.00022465,2]
[363160030,1748604657416,-4483.36,0.00022465,2]
[363160031,1748604657425,-515.51,0.00022465,2]
[363160032,1748604657434,-639.62,0.00022465,2]
[363160033,1748604657444,-2136.49,0.00022465,2]
[363160034,1748604657453,-420.0,0.00022465,2]
[363160035,1748604657462,-839.58,0.00022465,2]
[363160036,1748604657471,-979.47,0.00022465,2]
[363160037,1748604657481,-1149.03,0.00022465,2]
[363160038,1748604657491,-608.6,0.00022465,2]
[363160039,1748604657500,-939.09,0.00022465,2]
[363160040,1748604657510,-1482.61,0.00022465,2]
[363160041,1748604657519,-420.0,0.00022465,2]
[363160042,1748604657528,-1000.0,0.00022465,2]
[363160043,1748604657622,-1889.77,0.00022465,2]
[363160044,1748604657631,-420.0,0.00022465,2]
[363160045,1748604657640,-750.99,0.00022465,2]
[363160046,1748604657649,-443.41825292,0.00022465,2]
[363160047,1748604657658,-960.87,0.00022465,2]
[363160048,1748604657667,-514.33,0.00022465,2]
[363160049,1748604657675,-284.349538,0.00022465,7]
[363160050,1748604657684,-431.76,0.00022465,2]
[363160051,1748604657694,-866.43,0.00022465,2]
[363160052,1748604657703,-1436.8,0.00022465,2]
[363160053,1748604657712,-493.51,0.00022465,2]
[363160054,1748604657721,-10057.47,0.00022465,2]
[363160055,1748604657730,-754.64,0.00022465,2]
[363160056,1748604657739,-420.0,0.00022465,2]
[363160057,1748604657749,-574.11,0.00022465,2]
[363160058,1748604657759,-420.0,0.00022465,2]
[363160059,1748604657768,-2523.48,0.00022465,2]
[363160060,1748604657777,-864.09,0.00022465,2]
[363160061,1748604657787,-420.0,0.00022465,2]
[363160062,1748604657796,-595.39,0.00022465,2]
[363160063,1748604657806,-2343.17,0.00022465,2]
[363160064,1748604657816,-1350.61,0.00022465,2]
[363160065,1748604657825,-1275.82,0.00022465,2]
[363160066,1748604657834,-10528.63,0.00022465,2]
[363160067,1748604657843,-785.99,0.00022465,2]
[363160068,1748604657853,-420.0,0.00022465,2]
[363160069,1748604657863,-746.67,0.00022465,2]
[363160070,1748604657875,-1173.07,0.00022465,2]
[363160071,1748604657884,-1197.98,0.00022465,2]
[363160072,1748604657893,-2200.67,0.00022465,2]
[363160073,1748604657903,-845.16,0.00022465,2]
[363160074,1748604657912,-151.0,0.00022465,7]
[363160075,1748604657923,-795.97,0.00022465,2]
[363160076,1748604657932,-1300.55,0.00022465,2]
[363160077,1748604657942,-785.56,0.00022465,2]
[363160078,1748604657951,-6935.34,0.00022465,2]
[363160079,1748604657960,-420.0,0.00022465,2]
[363160080,1748604657970,-420.0,0.00022465,2]
[363160081,1748604657979,-420.0,0.00022465,2]
[363160082,1748604657989,-5936.94,0.00022465,2]
[363160083,1748604657998,-1476.35,0.00022465,2]
[363160084,1748604658007,-123071.45,0.00022465,2]
[363160085,1748604658016,-420.0,0.00022465,2]
[363160086,1748604658026,-4600.82,0.00022465,2]
[363160087,1748604658036,-574.07,0.00022465,2]
[363160088,1748604658046,-151.0,0.00022465,7]
[363160089,1748604658055,-420.0,0.00022465,2]
[363160090,1748604658064,-1760.95,0.00022465,2]
[363160091,1748604658074,-632.71,0.00022465,2]
[363160092,1748604658083,-3046.1,0.00022465,2]
[363160093,1748604658093,-420.0,0.00022465,2]
[363160094,1748604658105,-792.56,0.00022465,2]
[363160095,1748604658116,-876.4,0.00022465,2]
[363160096,1748604658125,-891.11,0.00022465,2]
[363160097,1748604658135,-1035.56,0.00022465,2]
[363160098,1748604658144,-781.24,0.00022465,2]
[363160099,1748604658154,-151.0,0.00022465,7]
[363160100,1748604658163,-868.44,0.00022465,2]
[363160101,1748604658173,-1178.18,0.00022465,2]
[363160102,1748604658182,-31646.38,0.00022465,2]
[363160103,1748604658192,-250.26,0.00022465,2]
[363160104,1748604658201,-420.0,0.00022465,2]
[363160105,1748604658211,-420.0,0.00022465,2]
[363160106,1748604658221,-996.67,0.00022465,2]
[363160107,1748604658230,-1089.79,0.00022465,2]
[363160108,1748604658240,-420.0,0.00022465,2]
[363160109,1748604658250,-420.0,0.00022465,2]
[363160110,1748604658259,-875.57,0.00022465,2]
[363160111,1748604658269,-2264.05,0.00022465,2]
[363160112,1748604658278,-420.0,0.00022465,2]
[363160113,1748604658288,-488.35976762,0.00022465,2]
[363160114,1748604658298,-1584.69,0.00022465,2]
[363160115,1748604658307,-420.0,0.00022465,2]
[363160116,1748604658317,-951.88,0.00022465,2]
[363160117,1748604658326,-520.84,0.00022465,2]
[363160118,1748604658335,-1161.85,0.00022465,2]
[363160119,1748604658344,-1451.673205,0.00022465,7]
[363160120,1748604658353,-423.91,0.00022465,2]
[363160121,1748604658361,-1451.673205,0.00022465,7]
[363160122,1748604658371,-1822.04,0.00022465,2]
[363160123,1748604658380,-420.0,0.00022465,2]
[363160124,1748604658388,-654.3,0.00022465,2]
[363160125,1748604658398,-761.08,0.00022465,2]
[363160126,1748604658407,-420.0,0.00022465,2]
[363160127,1748604658416,-1824.55,0.00022465,2]
[363160128,1748604658425,-1143.21,0.00022465,2]
[363160129,1748604658434,-1064.51,0.00022465,2]
[363160130,1748604658442,-500.0,0.00022473,2]
[363160131,1748604658452,-508.66302721,0.00022473,2]
[363160132,1748604658463,-216.20260541,0.00022473,2]
[363160133,1748604658472,-500.0,0.00022473,2]
[363160134,1748604658482,-500.0,0.00022473,2]
[363160135,1748604658492,-500.0,0.00022473,2]
[363160136,1748604658501,-500.0,0.00022473,2]
[363160137,1748604658510,-500.0,0.00022473,2]
[363160138,1748604658520,-471.77,0.00022499,2]
[363160139,1748604658529,-375.56,0.000225,2]
[363160140,1748604658539,-284258.29,0.000225,7]
[363160141,1748604658549,-9469.94,0.000225,7]
[363160142,1748604658558,-1178.99780264,0.000225,2]
[363160143,1748604658567,-151.0,0.000225,7]
[363160144,1748604658576,-151.0,0.000225,7]
[363160145,1748604658584,-151.0,0.000225,7]
[363160146,1748604658593,-151.0,0.000225,7]
[363160147,1748604658602,-1451.673205,0.000225,7]
[363160148,1748604658610,-1451.673205,0.000225,7]
[363160149,1748604658620,-2591.86224837,0.00022555,7]
[363160150,1748604658629,-170.71,0.0002256,2]
[363160151,1748604658638,-1415.43,0.000226,2]
[363160152,1748604658647,-949.9,0.000226,2]
[363160153,1748604658657,-2831.27,0.000226,2]
[363160154,1748604658666,-739.39,0.000226,2]
[363160155,1748604658675,-181.76,0.00022608,2]
[363160156,1748604658683,-206.0,0.0002261,6]
[363160157,1748604658692,-4656.3106,0.00022639,2]
[363160158,1748604658701,-151.0,0.00022639,7]
[363160159,1748604658710,-283.56205,0.00022639,7]
[363160160,1748604658720,-283.56205,0.00022639,7]
[363160161,1748604658729,-151.0,0.00022639,7]
[363160162,1748604658739,-2591.86224837,0.00022693,7]
[363160163,1748604658748,-506.98039416,0.0002271,2]
[363160164,1748604658757,-305.60291948,0.0002273,2]
[363160165,1748604658767,-1573.44,0.00022738,2]
[363160166,1748604658776,-1391.71,0.00022738,2]
[363160167,1748604658786,-7429.13,0.00022738,2]
[363160168,1748604658795,-2921.34,0.00022738,2]
[363160169,1748604658805,-794.62,0.00022738,2]
[363160170,1748604658813,-3174.36,0.00022738,2]
[363160171,1748604658822,-6568.92,0.00022738,2]
[363160172,1748604658830,-1736.8,0.00022738,2]
[363160173,1748604658838,-1403.38,0.00022738,2]
[363160174,1748604658847,-670.15,0.00022738,2]
[363160175,1748604658857,-9101.03,0.00022738,2]
[363160176,1748604658866,-18152.04,0.00022738,2]
[363160177,1748604658878,-27441.36,0.00022738,2]
[363160178,1748604658887,-751.61,0.00022738,2]
[363160179,1748604658896,-8935.23,0.00022738,2]
[363160180,1748604658906,-2810.26,0.00022738,2]
[363160181,1748604658915,-1874.07,0.00022738,2]
[363160182,1748604658925,-1242.14,0.00022738,2]
[363160183,1748604658934,-1551.25,0.00022738,2]
[363160184,1748604658944,-672.13,0.00022738,2]
[363160185,1748604658955,-300.0,0.00022738,2]
[363160186,1748604658964,-300.0,0.00022738,2]
[363160187,1748604658974,-300.0,0.00022738,2]
[363160188,1748604658983,-300.0,0.00022738,2]
[363160189,1748604658992,-300.0,0.00022738,2]
[363160190,1748604659001,-204.0,0.00022739,2]
[363160191,1748604659008,-204.0,0.00022739,2]
[363160192,1748604659017,-204.0,0.00022739,2]
[363160193,1748604659025,-204.0,0.00022739,2]
[363160194,1748604659032,-204.0,0.00022739,2]
[363160195,1748604659041,-204.0,0.00022739,2]
[363160196,1748604659048,-204.0,0.00022739,2]
[363160197,1748604659057,-204.0,0.00022739,2]
[363160198,1748604659065,-204.0,0.00022739,2]
[363160199,1748604659074,-204.0,0.00022739,2]
[363160200,1748604659083,-204.0,0.00022739,2]
[363160201,1748604659092,-204.0,0.00022739,2]
[363160202,1748604659101,-204.0,0.00022739,2]
[363160203,1748604659111,-204.0,0.00022739,2]
[363160204,1748604659122,-204.0,0.00022739,2]
[363160205,1748604659131,-210.0,0.00022739,2]
[363160206,1748604659141,-210.0,0.00022739,2]
[363160207,1748604659150,-210.0,0.00022739,2]
[363160208,1748604659160,-210.0,0.00022739,2]
[363160209,1748604659170,-210.0,0.00022739,2]
[363160210,1748604659179,-210.0,0.00022739,2]
[363160211,1748604659188,-628.57,0.00022739,2]
[363160212,1748604659197,-420.0,0.00022739,2]
[363160213,1748604659206,-420.0,0.00022739,2]
[363160214,1748604659220,-420.0,0.00022739,2]
[363160215,1748604659230,-420.0,0.00022739,2]
[363160216,1748604659239,-420.0,0.00022739,2]
[363160217,1748604659248,-433.48,0.00022739,2]
[363160218,1748604659258,-420.0,0.00022739,2]
[363160219,1748604659267,-640.5,0.00022739,2]
[363160220,1748604659277,-420.0,0.00022739,2]
[363160221,1748604659287,-420.0,0.00022739,2]
[363160222,1748604659296,-539.07,0.00022739,2]
[363160223,1748604659305,-465.13,0.00022739,2]
[363160224,1748604659315,-420.0,0.00022739,2]
[363160225,1748604659325,-465.38,0.00022739,2]
[363160226,1748604659335,-420.0,0.00022739,2]
[363160227,1748604659344,-423.97648057,0.00022739,2]
[363160228,1748604659353,-420.0,0.00022739,2]
[363160229,1748604659363,-250.0,0.00022739,2]
[363160230,1748604659374,-420.0,0.00022739,2]
[363160231,1748604659383,-420.0,0.00022739,2]
[363160232,1748604659393,-420.0,0.00022739,2]
[363160233,1748604659403,-151.0,0.00022739,7]
[363160234,1748604659412,-420.0,0.00022739,2]
[363160235,1748604659422,-468.76,0.00022739,2]
[363160236,1748604659431,-420.0,0.00022739,2]
[363160237,1748604659441,-420.0,0.00022739,2]
[363160238,1748604659450,-420.0,0.00022739,2]
[363160239,1748604659459,-420.0,0.00022739,2]
[363160240,1748604659468,-420.0,0.00022739,2]
[363160241,1748604659478,-420.0,0.00022739,2]
[363160242,1748604659488,-420.0,0.00022739,2]
[363160243,1748604659497,-420.0,0.00022739,2]
[363160244,1748604659506,-420.0,0.00022739,2]
[363160245,1748604659516,-420.0,0.00022739,2]
[363160246,1748604659525,-452.19,0.00022739,2]
[363160247,1748604659534,-420.0,0.00022739,2]
[363160248,1748604659543,-420.0,0.00022739,2]
[363160249,1748604659552,-420.0,0.00022739,2]
[363160250,1748604659561,-420.0,0.00022739,2]
[363160251,1748604659571,-645.55,0.00022739,2]
[363160252,1748604659580,-420.0,0.00022739,2]
[363160253,1748604659591,-420.0,0.00022739,2]
[363160254,1748604659603,-420.0,0.00022739,2]
[363160255,1748604659611,-420.98,0.00022739,2]
[363160256,1748604659628,-420.0,0.00022739,2]
[363160257,1748604659637,-420.0,0.00022739,2]
[363160258,1748604659647,-420.0,0.00022739,2]
[363160259,1748604659657,-420.0,0.00022739,2]
[363160260,1748604659667,-425.84362319,0.00022739,2]
[363160261,1748604659676,-420.0,0.00022739,2]
[363160262,1748604659686,-441.38,0.00022739,2]
[363160263,1748604659696,-420.0,0.00022739,2]
[363160264,1748604659705,-420.0,0.00022739,2]
[363160265,1748604659715,-552.87,0.00022739,2]
[363160266,1748604659724,-420.0,0.00022739,2]
[363160267,1748604659733,-420.0,0.00022739,2]
[363160268,1748604659743,-420.0,0.00022739,2]
[363160269,1748604659752,-480.01,0.00022739,2]
[363160270,1748604659762,-420.0,0.00022739,2]
[363160271,1748604659771,-420.0,0.00022739,2]
[363160272,1748604659781,-420.0,0.00022739,2]
[363160273,1748604659791,-420.0,0.00022739,2]
[363160274,1748604659800,-420.0,0.00022739,2]
[363160275,1748604659810,-420.0,0.00022739,2]
[363160276,1748604659819,-420.0,0.00022739,2]
[363160277,1748604659827,-420.0,0.00022739,2]
[363160278,1748604659837,-420.0,0.00022739,2]
[363160279,1748604659846,-420.0,0.00022739,2]
[363160280,1748604659855,-420.0,0.00022739,2]
[363160281,1748604659865,-420.0,0.00022739,2]
[363160282,1748604659876,-702.31,0.00022739,2]
[363160283,1748604659885,-446.43,0.00022739,2]
[363160284,1748604659894,-420.0,0.00022739,2]
[363160285,1748604659903,-438.29,0.00022739,2]
[363160286,1748604659912,-426.9,0.00022739,2]
[363160287,1748604659922,-420.0,0.00022739,2]
[363160288,1748604659931,-420.0,0.00022739,2]
[363160289,1748604659940,-930.8,0.00022739,2]
[363160290,1748604659951,-151.0,0.00022739,7]
[363160291,1748604659960,-420.0,0.00022739,2]
[363160292,1748604659969,-420.0,0.00022739,2]
[363160293,1748604659978,-420.0,0.00022739,2]
[363160294,1748604659987,-1732.59,0.00022739,2]
[363160295,1748604659996,-555.05,0.00022739,2]
[363160296,1748604660006,-420.0,0.00022739,2]
[363160297,1748604660015,-420.0,0.00022739,2]
[363160298,1748604660025,-1062.63,0.00022739,2]
[363160299,1748604660034,-580.84,0.00022739,2]
[363160300,1748604660044,-420.0,0.00022739,2]
[363160301,1748604660053,-642.32,0.00022739,2]
[363160302,1748604660064,-420.0,0.00022739,2]
[363160303,1748604660074,-718.47,0.00022739,2]
[363160304,1748604660084,-497.4,0.00022739,2]
[363160305,1748604660093,-984.73,0.00022739,2]
[363160306,1748604660103,-576.3,0.00022739,2]
[363160307,1748604660113,-420.0,0.00022739,2]
[363160308,1748604660123,-800.26,0.00022739,2]
[363160309,1748604660133,-718.15,0.00022739,2]
[363160310,1748604660142,-612.87,0.00022739,2]
[363160311,1748604660152,-770.54,0.00022739,2]
[363160312,1748604660161,-568.6,0.00022739,2]
[363160313,1748604660171,-728.67,0.00022739,2]
[363160314,1748604660180,-595.4,0.00022739,2]
[363160315,1748604660190,-420.0,0.00022739,2]
[363160316,1748604660200,-1523.16,0.00022739,2]
[363160317,1748604660210,-439.89,0.00022739,2]
[363160318,1748604660219,-1185.02,0.00022739,2]
[363160319,1748604660229,-473.85,0.00022739,2]
[363160320,1748604660239,-1155.34,0.00022739,2]
[363160321,1748604660250,-852.11,0.00022739,2]
[363160322,1748604660260,-536.09,0.00022739,2]
[363160323,1748604660270,-499.47,0.00022739,2]
[363160324,1748604660279,-1064.97,0.00022739,2]
[363160325,1748604660289,-553.07,0.00022739,2]
[363160326,1748604660298,-550.09,0.00022739,2]
[363160327,1748604660307,-420.0,0.00022739,2]
[363160328,1748604660316,-1249.34,0.00022739,2]
[363160329,1748604660326,-1087.42,0.00022739,2]
[363160330,1748604660335,-748.6,0.00022739,2]
[363160331,1748604660344,-420.0,0.00022739,2]
[363160332,1748604660353,-420.0,0.00022739,2]
[363160333,1748604660363,-420.0,0.00022739,2]
[363160334,1748604660373,-633.8,0.00022739,2]
[363160335,1748604660383,-569.25,0.00022739,2]
[363160336,1748604660393,-528.37,0.00022739,2]
[363160337,1748604660402,-420.0,0.00022739,2]
[363160338,1748604660412,-1602.73,0.00022739,2]
[363160339,1748604660422,-569.24,0.00022739,2]
[363160340,1748604660431,-457.6,0.00022739,2]
[363160341,1748604660441,-707.39,0.00022739,2]
[363160342,1748604660451,-1032.32,0.00022739,2]
[363160343,1748604660461,-910.96,0.00022739,2]
[363160344,1748604660471,-476.94,0.00022739,2]
[363160345,1748604660480,-498.99649402,0.00022739,2]
[363160346,1748604660489,-1017.67,0.00022739,2]
[363160347,1748604660499,-709.34,0.00022739,2]
[363160348,1748604660510,-234.87,0.00022739,2]
[363160349,1748604660519,-501.18,0.00022739,2]
[363160350,1748604660529,-677.94,0.00022739,2]
[363160351,1748604660539,-729.59,0.00022739,2]
[363160352,1748604660549,-1214.26,0.00022739,2]
[363160353,1748604660558,-646.84,0.00022739,2]
[363160354,1748604660568,-473.0,0.00022739,2]
[363160355,1748604660577,-633.82,0.00022739,2]
[363160356,1748604660587,-1308.02,0.00022739,2]
[363160357,1748604660596,-454.15,0.00022739,2]
[363160358,1748604660606,-420.0,0.00022739,2]
[363160359,1748604660617,-530.64,0.00022739,2]
[363160360,1748604660626,-520.26,0.00022739,2]
[363160361,1748604660636,-460.64,0.00022739,2]
[363160362,1748604660646,-609.32,0.00022739,2]
[363160363,1748604660656,-420.0,0.00022739,2]
[363160364,1748604660665,-420.0,0.00022739,2]
[363160365,1748604660676,-420.0,0.00022739,2]
[363160366,1748604660686,-1385.17,0.00022739,2]
[363160367,1748604660696,-611.87,0.00022739,2]
[363160368,1748604660705,-457.58,0.00022739,2]
[363160369,1748604660714,-498.5,0.00022739,2]
[363160370,1748604660723,-1068.05,0.00022739,2]
[363160371,1748604660732,-534.02,0.00022739,2]
[363160372,1748604660742,-420.0,0.00022739,2]
[363160373,1748604660751,-423.02,0.00022739,2]
[363160374,1748604660760,-1806.1,0.00022739,2]
[363160375,1748604660770,-955.38,0.00022739,2]
[363160376,1748604660780,-437.24,0.00022739,2]
[363160377,1748604660789,-420.0,0.00022739,2]
[363160378,1748604660799,-998.33,0.00022739,2]
[363160379,1748604660809,-1133.83,0.00022739,2]
[363160380,1748604660818,-768.21,0.00022739,2]
[363160381,1748604660828,-774.62,0.00022739,2]
[363160382,1748604660838,-420.0,0.00022739,2]
[363160383,1748604660847,-735.92,0.00022739,2]
[363160384,1748604660857,-1319.04,0.00022739,2]
[363160385,1748604660867,-448.54,0.00022739,2]
[363160386,1748604660881,-420.0,0.00022739,2]
[363160387,1748604660890,-622.98,0.00022739,2]
[363160388,1748604660899,-420.0,0.00022739,2]
[363160389,1748604660909,-1350.91,0.00022739,2]
[363160390,1748604660918,-420.0,0.00022739,2]
[363160391,1748604660928,-420.0,0.00022739,2]
[363160392,1748604660938,-519.24,0.00022739,2]
[363160393,1748604660948,-489.38,0.00022739,2]
[363160394,1748604660957,-420.0,0.00022739,2]
[363160395,1748604660967,-420.0,0.00022739,2]
[363160396,1748604660977,-613.75,0.00022739,2]
[363160397,1748604660986,-606.72,0.00022739,2]
[363160398,1748604660995,-420.0,0.00022739,2]